bitfinex/quotes_ETHUSD_20260125
["timestamp","ask_amount","ask_price","bid_price","bid_amount"]
[1769357076786,11.64619432,2914.5,2912.4,0.47214073]
[1769357077109,2.82505932,2914.5,2912.4,0.47214073]
[1769357077314,2.257586,2914.4,2912.4,0.47214073]
[1769357077492,2.544765,2914.2,2912.4,0.47214073]
[1769357077694,0.8578978,2914.1,2912.3,0.85842804]
[1769357078012,0.85788975,2914.2,2912.3,0.91667814]
[1769357078511,3.33332385,2914.3,2912.3,0.91667814]
[1769357078686,0.50826453,2914.3,2912.5,0.0582501]
[1769357079006,0.85774106,2914.7,2912.7,0.0582501]
[1769357079229,2.82505932,2914.9,2912.9,0.0582501]
[1769357079508,3.114359,2914.8,2912.7,0.0582501]
[1769357079711,2.82505932,2914.5,2912.2,1.2876861]
[1769357079883,16.32733432,2914.2,2912.2,1.320563]
[1769357080083,11.163561,2914.1,2912.2,1.320563]
[1769357080316,2.82505932,2914.2,2912.2,0.46212367]
[1769357080512,1.31953653,2914.4,2911.4,4.21200772]
[1769357080513,2.82505932,2913.7,2911.9,0.85852811]
[1769357080691,5.32001332,2913.6,2911.6,3.43452203]
[1769357080896,2.82505932,2913.6,2911.8,0.8585553]
[1769357081100,2.82505932,2913.6,2911.6,3.43450672]
[1769357081380,2.82505932,2913.6,2911.4,0.719]
[1769357081713,2.82505932,2913.2,2910.9,0.8608409]
[1769357081914,4.465,2913.9,2911.5,2.8484104]
[1769357082115,2.82505932,2914.2,2912.4,0.002]
[1769357082410,0.128,2914.1,2912.4,0.002]
[1769357082816,2.82505932,2914.2,2912.4,0.002]
[1769357083023,0.28260593,2914.1,2912.4,0.002]
[1769357083183,2.82505932,2914.1,2912.4,0.002]
[1769357083509,2.696781,2914.0,2912.4,0.002]
[1769357083919,2.82505932,2914.1,2912.4,0.002]
[1769357084422,0.001,2914.3,2912.5,2.8484104]
[1769357084726,0.001,2914.3,2913.3,0.0582501]
[1769357084927,0.001,2914.3,2913.5,0.0582501]
[1769357085084,0.0008,2915.1,2913.3,0.0582501]
[1769357085085,0.0008,2915.1,2913.6,0.0582501]
[1769357085290,0.0008,2915.1,2912.9,0.0582501]
[1769357085291,0.0008,2915.1,2913.4,0.0582501]
[1769357085638,0.0008,2915.1,2913.6,0.0582501]
[1769357085802,0.0008,2915.1,2913.7,0.85801558]
[1769357086116,0.0008,2915.1,2913.8,0.43483647]
[1769357086294,0.0008,2915.1,2913.6,0.85802792]
[1769357086709,0.0008,2915.1,2913.6,0.91627802]
[1769357086889,0.0008,2915.1,2913.7,0.0582501]
[1769357087710,0.0008,2915.1,2913.9,0.0582501]
[1769357087918,0.0008,2916.0,2914.3,2.7901603]
[1769357088236,0.0008,2916.0,2914.4,0.28484104]
[1769357088473,0.0008,2916.0,2914.1,0.9161479]
[1769357088788,0.0008,2916.0,2914.3,0.0582501]
[1769357089092,0.0008,2916.0,2914.5,0.0582501]
[1769357089288,0.0008,2916.0,2914.3,0.0582501]
[1769357089595,0.0008,2916.0,2914.5,0.0582501]
[1769357090117,0.0008,2916.0,2914.6,0.85775063]
[1769357090321,0.0008,2916.0,2914.7,0.43470033]
[1769357090520,0.0008,2916.0,2914.9,0.0582501]
[1769357090889,0.0008,2916.0,2914.7,0.49295043]
[1769357091192,0.0008,2916.0,2913.8,0.0582501]
[1769357091500,2.82505932,2915.9,2914.0,0.85790925]
[1769357091925,2.82505932,2915.9,2913.8,3.43188478]
[1769357091926,2.82505932,2915.9,2914.4,0.85779768]
[1769357092347,0.0008,2916.0,2914.3,0.0582501]
[1769357092707,0.0008,2916.0,2914.5,0.0582501]
[1769357093099,0.0008,2916.0,2914.7,0.0582501]
[1769357093610,0.0008,2916.0,2914.8,2.7901603]
[1769357093821,3.42910697,2916.9,2914.7,0.0582501]
[1769357093822,0.0008,2916.9,2915.4,0.0582501]
[1769357094315,0.0008,2916.9,2915.5,0.85748585]
[1769357094526,0.0008,2916.9,2915.6,0.0582501]
[1769357094732,0.001,2915.8,2915.5,0.85748585]
[1769357094937,0.0008,2916.9,2915.5,0.85748585]
[1769357095141,0.0008,2916.9,2915.6,0.42874293]
[1769357096437,0.0008,2916.9,2915.1,0.85757423]
[1769357096745,0.0008,2916.9,2914.6,0.719]
[1769357096746,2.82585932,2916.9,2914.6,0.719]
[1769357096915,2.82505932,2916.7,2914.7,0.85771398]
[1769357097123,2.82505932,2916.7,2914.9,0.85766177]
[1769357097333,2.82505932,2916.7,2914.9,0.8576594]
[1769357097533,0.28250593,2916.6,2914.8,0.0582501]
[1769357097847,0.0008,2916.9,2914.8,0.0582501]
[1769357097848,0.0008,2916.9,2915.6,0.85745211]
[1769357098032,0.0008,2916.9,2915.5,0.85747035]
[1769357098218,0.0008,2916.9,2914.9,0.85766235]
[1769357098618,2.82505932,2916.7,2914.7,0.85771276]
[1769357098820,2.82505932,2916.7,2914.7,0.85770099]
[1769357099025,3.10756525,2916.6,2914.7,0.85769716]
[1769357099220,3.10756525,2916.6,2914.8,0.85769092]
[1769357099911,3.10756525,2916.6,2914.6,0.719]
[1769357100240,0.28250593,2916.6,2914.8,0.85768913]
[1769357100441,0.0008,2916.9,2914.8,0.85768913]
[1769357101047,2.77449,2916.8,2914.8,0.85768913]
[1769357101235,0.85787566,2916.9,2914.8,0.85768913]
[1769357101555,2.82505932,2916.8,2914.6,0.719]
[1769357101848,2.82505932,2916.8,2914.6,0.85774565]
[1769357101849,2.82505932,2916.3,2914.6,0.85774565]
[1769357102148,2.82505932,2916.3,2914.0,0.85790957]
[1769357102319,2.82505932,2915.8,2913.9,0.0582501]
[1769357102722,2.82505932,2915.6,2913.5,1.57705329]
[1769357103035,3.18208758,2915.0,2913.2,0.0016]
[1769357103243,3.18208758,2915.0,2913.2,0.85975707]
[1769357103867,3.18208758,2915.0,2913.2,0.85974549]
[1769357104069,3.18208758,2915.0,2913.2,0.0016]
[1769357104244,3.18208758,2914.8,2913.2,0.0016]
[1769357105164,3.18208758,2914.5,2913.2,0.0016]
[1769357105758,3.18208758,2914.3,2913.2,0.0016]
[1769357105941,3.18208758,2914.3,2912.6,0.002]
[1769357106265,4.03993488,2914.3,2912.6,0.002]
[1769357106432,0.40399349,2914.2,2912.6,0.002]
[1769357106929,0.40399349,2914.2,2913.4,0.002]
[1769357107129,3.18208758,2914.3,2912.6,0.002]
[1769357107335,3.18208758,2913.9,2912.6,0.002]
[1769357107544,3.18208758,2913.7,2912.4,0.002]
[1769357107749,8.613985,2913.4,2912.4,0.002]
[1769357107960,3.18208758,2913.5,2912.4,0.002]
[1769357108166,0.31820876,2913.4,2912.4,0.002]
[1769357108564,3.18208758,2913.3,2912.0,0.002]
[1769357108955,1.17631569,2913.4,2912.0,0.002]
[1769357108956,0.31820876,2913.4,2912.1,0.0582501]
[1769357109157,3.18288758,2915.6,2913.0,0.0582501]
[1769357109465,3.18288758,2915.6,2913.5,0.0582501]
[1769357109671,3.18288758,2915.6,2913.7,0.0582501]
[1769357109864,3.18288758,2915.6,2913.2,0.0582501]
[1769357110053,0.8575051,2915.5,2913.3,0.0582501]
[1769357110253,0.85753897,2915.4,2913.3,0.0582501]
[1769357110472,0.85748585,2915.5,2913.0,0.33087035]
[1769357110774,3.18208758,2914.6,2912.8,0.85826214]
[1769357110968,2.409218,2914.5,2912.6,3.43331757]
[1769357111272,2.409218,2914.5,2912.7,0.85830297]
[1769357111444,2.409218,2914.5,2912.9,0.85824742]
[1769357111650,0.128,2915.1,2913.2,0.85815217]
[1769357111954,0.128,2915.1,2913.1,0.85816698]
[1769357112159,0.128,2915.1,2913.1,0.85816758]
[1769357112337,3.18208758,2915.2,2913.3,0.85812547]
[1769357112539,4.03967481,2915.2,2913.2,0.85816284]
[1769357112736,4.03967481,2915.2,2913.1,0.42910396]
[1769357112941,4.03967481,2915.2,2913.1,0.85818797]
[1769357113786,3.18208758,2915.2,2913.4,0.0582501]
[1769357113945,0.7198,2915.6,2913.5,0.03432297]
[1769357114145,0.85753569,2915.4,2913.5,0.0582501]
[1769357114339,0.7198,2915.6,2913.5,0.0582501]
[1769357114542,0.7198,2915.6,2913.6,0.85804503]
[1769357114790,0.0008,2915.6,2914.3,0.0582501]
[1769357115074,0.0008,2915.6,2913.9,0.0582501]
[1769357115253,0.0008,2915.6,2914.3,0.0582501]
[1769357115444,0.0008,2915.6,2913.9,0.0582501]
[1769357115640,0.0008,2915.6,2914.1,0.0582501]
[1769357115841,0.0008,2915.6,2914.3,0.0582501]
[1769357116083,0.0008,2915.6,2913.9,0.0582501]
[1769357116281,0.0008,2915.6,2914.1,0.0582501]
[1769357116464,0.0008,2915.6,2914.3,0.0582501]
[1769357116670,0.0008,2915.6,2914.4,0.85780949]
[1769357116985,0.0008,2915.6,2914.4,1.28671424]
[1769357118094,0.0008,2915.6,2914.4,1.34496434]
[1769357118808,0.0008,2915.6,2914.6,0.0582501]
[1769357118984,0.0008,2915.6,2914.8,0.0582501]
[1769357119324,0.0008,2915.6,2915.0,0.0582501]
[1769357119478,0.0008,2915.6,2915.1,0.0582501]
[1769357119681,0.0008,2916.9,2915.3,0.0582501]
[1769357120182,0.0008,2916.9,2915.5,0.0582501]
[1769357120694,0.0008,2916.9,2915.8,0.85739762]
[1769357120893,0.0008,2916.9,2915.7,3.4878406]
[1769357120894,0.0008,2916.9,2915.7,0.85741945]
[1769357121609,0.0008,2916.9,2915.7,0.91566955]
[1769357121902,0.0008,2916.9,2915.7,1.35020732]
[1769357122602,0.0008,2916.9,2915.7,1.29195722]
[1769357123631,0.0008,2916.9,2915.7,1.29196211]
[1769357123832,0.0008,2916.9,2915.4,3.48821126]
[1769357124040,0.0008,2916.9,2915.2,0.0582501]
[1769357124041,0.0008,2916.9,2915.2,0.9158044]
[1769357124332,0.0008,2916.9,2915.3,0.85752805]
[1769357124537,0.0008,2916.9,2915.3,0.85752119]
[1769357124742,0.0008,2916.9,2915.1,0.85760351]
[1769357124940,3.21091018,2916.9,2915.0,0.85762669]
[1769357125237,0.32109102,2916.8,2915.0,0.85762669]
[1769357125600,0.32109102,2916.8,2915.3,0.0582501]
[1769357125805,0.0008,2916.9,2915.0,0.91587679]
[1769357126743,0.85787429,2916.9,2915.0,0.91587679]
[1769357127114,3.21011018,2916.6,2914.4,1.28669735]
[1769357127319,3.21011018,2916.4,2914.1,3.43158124]
[1769357127516,3.21011018,2916.4,2914.4,0.8578061]
[1769357127729,3.21011018,2916.2,2914.1,0.85789105]
[1769357127932,3.21011018,2915.8,2913.7,0.43484753]
[1769357128135,3.21011018,2915.8,2912.4,0.0582501]
[1769357128136,3.21011018,2915.6,2913.0,0.0582501]
[1769357128337,3.21011018,2915.4,2913.3,0.0582501]
[1769357128539,0.32101102,2915.3,2913.9,0.0582501]
[1769357128708,3.21011018,2916.0,2913.5,0.0582501]
[1769357128906,4.322422,2915.7,2913.6,3.43208578]
[1769357129239,3.42923768,2916.2,2914.1,0.0582501]
[1769357129240,0.128,2916.2,2914.1,0.0582501]
[1769357129638,4.06733969,2916.4,2914.3,0.0582501]
[1769357129856,5.851752,2916.2,2914.1,0.0582501]
[1769357130042,0.74962051,2916.3,2914.3,0.0582501]
[1769357130945,0.74962051,2916.3,2914.5,0.0582501]
[1769357131155,3.205469,2916.2,2914.4,0.85780949]
[1769357131439,1.60688118,2916.3,2914.4,0.85780949]
[1769357131647,3.69180932,2916.2,2914.1,0.0582501]
[1769357131947,3.69180932,2916.2,2912.8,0.0582501]
[1769357131948,8.908151,2915.2,2912.5,3.49166868]
[1769357132251,3.21011018,2915.3,2912.6,0.85832209]
[1769357132252,6.114423,2914.7,2912.6,0.85832209]
[1769357132410,0.847,2915.3,2912.9,0.002]
[1769357132411,3.21011018,2914.4,2912.9,0.002]
[1769357132611,6.69226718,2914.3,2912.9,0.002]
[1769357132820,4.06795681,2914.3,2912.9,0.002]
[1769357133041,0.85769177,2914.8,2913.0,0.0582501]
[1769357133215,3.06017,2914.7,2912.9,0.002]
[1769357133426,2.142248,2914.5,2912.9,0.002]
[1769357134068,0.39178618,2914.6,2912.9,0.002]
[1769357134275,0.85769177,2914.8,2912.9,0.002]
[1769357134444,2.128124,2915.0,2913.0,0.0582501]
[1769357134761,0.128,2915.0,2912.9,0.002]
[1769357134963,0.85766235,2914.9,2912.9,0.002]
[1769357135343,3.99749405,2914.9,2912.9,0.002]
[1769357135548,0.75560649,2914.8,2912.9,0.002]
[1769357135851,3.722248,2914.7,2912.9,0.002]
[1769357136247,3.1398317,2914.7,2912.9,0.002]
[1769357136566,0.128,2914.6,2912.9,0.002]
[1769357136752,3.1398317,2914.1,2912.9,0.002]
[1769357136955,0.97607487,2914.0,2912.9,0.002]
[1769357137276,0.85793134,2914.0,2912.9,0.002]
[1769357137578,3.348919,2914.3,2912.9,0.002]
[1769357137755,9.3783447,2914.1,2912.9,0.002]
[1769357137934,4.486478,2914.0,2912.9,0.002]
[1769357138136,3.16423,2914.0,2912.9,0.002]
[1769357138346,3.99756824,2914.7,2912.9,0.002]
[1769357138566,3.99757174,2914.7,2912.9,0.002]
[1769357138866,3.9975602,2914.7,2912.9,0.002]
[1769357139376,3.1398317,2914.2,2912.9,0.002]
[1769357139581,3.1398317,2914.0,2912.0,0.002]
[1769357139748,0.0582501,2914.2,2912.0,0.002]
[1769357139749,3.300876,2913.7,2912.0,0.002]
[1769357140362,3.1398317,2913.8,2912.1,0.85847065]
[1769357140669,3.1398317,2913.8,2912.1,0.85846978]
[1769357140850,0.98583893,2914.3,2912.3,3.43368198]
[1769357141174,0.98583893,2914.3,2912.2,0.93667285]
[1769357141175,0.98583893,2914.3,2912.2,0.85843618]
[1769357141390,2.908434,2914.1,2912.3,0.42923583]
[1769357141551,2.120434,2914.1,2912.3,0.42923583]
[1769357141747,2.120434,2914.1,2912.4,0.0582501]
[1769357141952,0.75569259,2914.2,2912.4,0.0582501]
[1769357142155,0.85782143,2914.4,2912.4,0.0582501]
[1769357142687,3.574184,2914.3,2912.4,0.0582501]
[1769357142849,2.06202,2914.3,2912.4,0.0582501]
[1769357143055,0.85770458,2914.8,2912.6,0.0582501]
[1769357143278,3.1398317,2914.4,2912.2,0.85844125]
[1769357143484,3.1398317,2914.2,2912.3,0.85842644]
[1769357143689,3.1398317,2914.2,2912.3,0.85841343]
[1769357143882,6.664263,2914.1,2912.2,0.85844352]
[1769357144081,0.98040947,2914.0,2912.1,0.0582501]
[1769357144292,8.852329,2914.1,2912.2,0.85845369]
[1769357144492,5.8768,2914.1,2912.3,0.85842379]
[1769357144792,0.001,2914.1,2912.4,0.86039717]
[1769357145086,0.8588978,2914.1,2912.4,0.002]
[1769357148196,3.1398317,2913.7,2912.4,0.002]
[1769357148495,5.806726,2913.5,2912.4,0.002]
[1769357148726,3.1398317,2913.2,2912.1,0.002]
[1769357149397,3.998024,2913.1,2912.1,0.002]
[1769357149803,3.1398317,2913.1,2912.1,0.002]
[1769357149965,0.39980163,2913.0,2912.1,0.002]
[1769357151594,6.35,2913.5,2912.1,0.002]
[1769357151798,7.20808308,2913.5,2912.1,0.002]
[1769357152104,3.1408317,2914.1,2912.1,0.002]
[1769357152105,0.001,2914.1,2912.1,0.002]
[1769357152269,0.001,2914.1,2912.1,3.28997793]
[1769357152472,0.85890169,2914.1,2912.1,3.28997793]
[1769357152670,0.47177334,2914.0,2912.2,0.38744789]
[1769357152878,0.001,2914.1,2912.2,3.67542582]
[1769357153278,0.001,2914.1,2912.3,0.85842804]
[1769357153809,3.1398317,2913.9,2912.2,0.32919779]
[1769357154005,3.1398317,2913.8,2912.2,0.85845384]
[1769357154221,3.1398317,2913.8,2912.1,0.002]
[1769357154426,2.896075,2913.7,2912.1,0.002]
[1769357154714,0.001,2914.1,2912.1,0.002]
[1769357154715,8.3406837,2913.5,2912.1,0.002]
[1769357154881,3.1398317,2913.5,2912.1,0.86048309]
[1769357155080,4.456052,2913.9,2912.2,0.42965458]
[1769357155299,0.85798613,2913.8,2912.1,0.002]
[1769357156408,3.99781783,2913.8,2912.1,0.002]
[1769357156797,5.035545,2913.7,2912.1,0.002]
[1769357157007,8.1753767,2913.6,2912.1,0.002]
[1769357157185,5.035545,2913.5,2912.1,0.002]
[1769357157387,0.81753767,2913.4,2912.1,0.002]
[1769357157597,0.85807569,2913.5,2912.1,0.002]
[1769357157920,0.85807569,2913.5,2912.3,0.002]
[1769357158231,3.1398317,2913.4,2912.3,0.002]
[1769357158380,3.1398317,2913.2,2912.0,0.002]
[1769357158581,1.15976857,2913.1,2912.0,0.002]
[1769357158832,3.8588317,2913.1,2912.0,0.002]
[1769357159481,0.719,2913.1,2912.0,0.002]
[1769357159681,1.5771986,2913.1,2912.0,0.002]
[1769357159934,0.719,2913.1,2912.0,0.002]
[1769357160497,3.1398317,2913.6,2912.0,0.002]
[1769357160705,2.92033,2913.4,2912.0,0.002]
[1769357160994,0.31398317,2913.5,2912.0,0.002]
[1769357161421,5.09455,2913.7,2912.0,0.002]
[1769357161633,3.1408317,2914.1,2912.0,0.002]
[1769357161634,0.85896316,2913.9,2912.0,0.002]
[1769357161826,0.001,2913.9,2912.0,3.28997793]
[1769357162128,13.1886657,2913.8,2912.0,0.002]
[1769357162331,6.192546,2913.6,2912.0,0.002]
[1769357162532,1.40476249,2913.7,2912.0,0.002]
[1769357162829,0.85897107,2913.9,2912.1,0.0582501]
[1769357162830,0.001,2913.9,2912.1,0.0582501]
[1769357163017,0.001,2913.9,2912.4,3.2016514]
[1769357163401,3.3261314,2915.0,2912.4,3.2016514]
[1769357163402,3.3261314,2915.6,2913.2,0.0582501]
[1769357163752,4.1836063,2915.6,2913.4,0.0582501]
[1769357163924,4.1836063,2915.6,2913.2,3.2016514]
[1769357164139,0.83323271,2915.5,2913.5,0.0582501]
[1769357164333,0.0582501,2916.2,2913.7,0.0582501]
[1769357164334,9.088315,2915.8,2913.7,0.0582501]
[1769357164538,9.088315,2915.8,2913.5,3.2016514]
[1769357164702,3.763318,2915.7,2913.5,3.2016514]
[1769357165045,3.3261314,2915.6,2913.3,0.32016514]
[1769357165200,8.0251834,2915.3,2912.9,4.00165252]
[1769357165409,3.3261314,2914.8,2912.6,0.85831949]
[1769357165726,2.123484,2914.6,2912.6,0.85831949]
[1769357166131,10.3165204,2914.5,2912.6,0.85833894]
[1769357166333,1.03165204,2914.4,2912.6,0.85833894]
[1769357166635,1.03165204,2914.4,2912.5,3.43346828]
[1769357166636,0.128,2914.3,2912.4,0.719]
[1769357166831,0.128,2914.3,2912.4,1.57738095]
[1769357167032,0.128,2914.3,2912.4,0.719]
[1769357167333,3.4541314,2914.3,2912.4,1.57738125]
[1769357167635,4.31198559,2914.3,2912.4,1.5773968]
[1769357167834,0.77432894,2914.2,2912.4,0.8583968]
[1769357168004,0.77432894,2914.2,2912.5,0.0582501]
[1769357168400,4.18397983,2914.3,2912.4,0.8583968]
[1769357168671,3.4541314,2913.7,2912.0,0.002]
[1769357168932,8.5072454,2913.1,2912.0,0.002]
[1769357169237,3.3261314,2913.0,2912.0,0.002]
[1769357169435,0.85831015,2912.7,2912.0,0.002]
[1769357169651,15.528686,2912.4,2911.5,0.003]
[1769357169798,15.528686,2912.4,2911.2,0.002]
[1769357170002,10.2487864,2912.0,2910.9,0.002]
[1769357170234,6.922655,2911.9,2910.7,0.002]
[1769357170455,9.387287,2911.7,2910.7,0.002]
[1769357170602,4.151405,2911.7,2910.7,0.002]
[1769357171339,17.2939854,2911.7,2910.7,0.002]
[1769357171527,17.2939854,2911.7,2909.0,3.49580438]
[1769357171528,3.3261314,2911.6,2909.5,0.0582501]
[1769357171703,3.3261314,2911.6,2909.1,0.85937231]
[1769357171905,3.3261314,2911.4,2909.1,0.85937231]
[1769357172112,5.223738,2911.2,2909.1,0.85937231]
[1769357172402,3.263868,2911.2,2909.1,0.85937231]
[1769357172727,3.263868,2911.2,2909.1,0.91762241]
[1769357173043,2.01836754,2911.3,2909.3,0.0582501]
[1769357173351,1.02487864,2911.8,2909.7,0.0582501]
[1769357173502,3.3261314,2912.0,2909.8,0.91741567]
[1769357173702,6.738259,2911.9,2909.8,0.85916557]
[1769357173935,0.719,2912.1,2910.1,3.2016514]
[1769357174102,3.223051,2912.5,2910.2,3.2016514]
[1769357174429,3.918026,2912.8,2910.6,3.2016514]
[1769357174601,4.779513,2912.6,2910.7,0.32016514]
[1769357174802,3.16948812,2912.5,2910.7,0.32016514]
[1769357175025,4.099967,2912.2,2909.5,3.49491241]
[1769357175226,4.109189,2912.1,2909.5,0.0582501]
[1769357175429,4.02806357,2911.8,2909.5,0.91750426]
[1769357175735,2.023224,2911.7,2909.5,0.85925416]
[1769357176335,3.16948812,2911.4,2909.4,0.85928297]
[1769357176538,3.16948812,2911.0,2908.8,0.85944326]
[1769357176835,6.147779,2910.7,2909.2,0.85933453]
[1769357177001,5.5646,2910.7,2908.9,0.85940695]
[1769357177198,0.87340881,2910.6,2909.0,0.42971469]
[1769357177402,0.87340881,2910.6,2908.4,0.0016]
[1769357177403,0.85892943,2910.6,2908.4,0.0016]
[1769357177640,0.85892943,2910.6,2908.4,3.3617375]
[1769357178001,7.620428,2910.4,2908.4,0.0016]
[1769357178236,3.16948812,2909.9,2908.4,0.0016]
[1769357178541,3.16948812,2909.9,2907.2,0.0582501]
[1769357178542,5.871332,2909.4,2907.2,0.0582501]
[1769357178779,0.5871332,2909.3,2908.2,0.85962965]
[1769357179038,0.0008,2909.9,2907.3,0.34183876]
[1769357179039,13.120238,2909.4,2907.3,0.34183876]
[1769357179203,0.0582501,2909.4,2907.6,0.85981152]
[1769357179403,0.0582501,2909.4,2907.0,3.49821963]
[1769357179404,0.0582501,2909.4,2907.0,0.0582501]
[1769357179737,0.91754009,2909.4,2907.1,0.85996353]
[1769357180044,3.22773822,2909.2,2907.1,0.85996353]
[1769357180246,3.22773822,2909.0,2906.8,0.86002885]
[1769357180412,0.0582501,2908.7,2907.0,0.85996376]
[1769357180611,0.0582501,2908.7,2906.8,0.86003665]
[1769357180612,0.7782501,2908.7,2906.8,0.86003665]
[1769357180818,0.32277382,2908.9,2907.0,0.85998418]
[1769357181014,0.0582501,2909.6,2907.0,0.85998418]
[1769357181015,0.0008,2909.9,2907.2,3.4183876]
[1769357181215,0.0008,2909.9,2907.5,3.3601375]
[1769357181216,8.818916,2909.8,2907.5,3.3601375]
[1769357181407,3.002092,2909.8,2907.6,0.85981565]
[1769357181728,0.0008,2909.9,2908.4,0.002]
[1769357181928,2.366424,2909.8,2908.4,0.002]
[1769357182103,0.32263661,2909.7,2908.4,0.002]
[1769357182303,0.0582501,2909.5,2908.4,0.002]
[1769357182541,4.023442,2909.7,2908.4,0.002]
[1769357182742,0.0582501,2909.8,2908.4,0.002]
[1769357183162,0.0008,2909.9,2908.4,0.002]
[1769357183519,0.0008,2910.8,2908.9,3.3601375]
[1769357183772,0.0008,2910.8,2909.0,3.70197626]
[1769357184320,0.0008,2910.8,2909.0,0.34183876]
[1769357184321,0.0582501,2910.5,2909.0,0.34183876]
[1769357184620,0.0582501,2910.4,2908.5,0.85954959]
[1769357184950,0.0582501,2910.1,2908.5,0.85954959]
[1769357185550,0.0582501,2910.3,2908.4,0.002]
[1769357185723,0.0582501,2909.6,2908.4,0.002]
[1769357185925,0.0582501,2909.3,2908.4,0.002]
[1769357186650,0.0582501,2908.9,2907.3,0.85988543]
[1769357186965,3.16948812,2909.4,2907.7,0.85976597]
[1769357187132,0.0582501,2908.8,2907.2,0.85993363]
[1769357187331,0.0582501,2908.8,2907.4,0.85987382]
[1769357187533,0.0582501,2908.8,2907.0,0.002]
[1769357187534,0.0582501,2908.3,2907.0,0.002]
[1769357187857,0.0582501,2908.1,2907.0,0.002]
[1769357188064,0.0582501,2907.9,2907.0,0.002]
[1769357188248,3.22773822,2908.8,2907.0,0.002]
[1769357188453,0.31694881,2909.3,2907.2,3.3601375]
[1769357188764,7.948539,2909.7,2907.0,0.002]
[1769357188923,0.0582501,2909.6,2907.1,0.0582501]
[1769357189119,0.0582501,2909.6,2907.0,3.4203876]
[1769357189325,4.004717,2909.3,2907.1,0.34203876]
[1769357189525,0.85933339,2909.3,2907.2,0.85993395]
[1769357189762,0.0582501,2908.9,2907.2,0.85993395]
[1769357190190,2.576675,2909.4,2907.2,0.85993395]
[1769357190338,0.0582501,2910.0,2907.6,0.0582501]
[1769357190669,0.72,2910.1,2907.8,3.4183876]
[1769357190849,1.57907897,2910.1,2907.8,3.4183876]
[1769357191063,0.72,2910.1,2907.8,3.3601375]
[1769357191357,3.22773822,2911.0,2908.3,0.0582501]
[1769357191572,3.22773822,2911.0,2908.6,0.85952004]
[1769357191573,0.0008,2910.8,2908.6,0.85952004]
[1769357191734,0.0008,2910.8,2909.2,0.0582501]
[1769357191932,0.0008,2910.8,2909.4,0.0582501]
[1769357192379,0.0008,2910.8,2909.2,3.4183876]
[1769357192600,0.0008,2910.8,2909.2,3.3601375]
[1769357193135,0.0008,2910.8,2908.7,0.49383513]
[1769357193437,0.0008,2910.8,2908.9,0.0582501]
[1769357193644,0.0008,2910.8,2909.2,3.33446545]
[1769357194071,0.0008,2910.8,2909.4,0.0582501]
[1769357194281,0.0008,2910.8,2909.2,3.33446545]
[1769357194282,0.001,2909.5,2909.2,3.33446545]
[1769357194450,0.0008,2910.8,2909.1,0.0582501]
[1769357194642,0.0008,2910.8,2909.1,0.49377604]
[1769357194838,0.0582501,2912.0,2909.6,3.27621535]
[1769357195038,0.9165402,2912.8,2910.3,0.0582501]
[1769357195264,0.0582501,2912.6,2910.1,3.33446545]
[1769357195480,0.0582501,2912.7,2910.2,0.33344655]
[1769357195683,0.0582501,2912.3,2910.3,0.85901797]
[1769357195976,0.0582501,2911.7,2910.0,0.85909499]
[1769357197046,0.0582501,2911.7,2910.1,0.85907454]
[1769357197248,0.0582501,2912.3,2910.2,0.85903804]
[1769357197594,0.36463003,2912.3,2910.4,0.85898845]
[1769357197770,0.0582501,2912.5,2910.4,0.85898845]
[1769357197970,0.0582501,2912.3,2910.4,0.85898845]
[1769357198297,2.290654,2912.2,2910.3,0.42953264]
[1769357198465,2.290654,2912.2,2910.3,0.85900184]
[1769357198669,3.46005019,2912.1,2909.8,0.72]
[1769357198863,4.951337,2911.8,2909.9,0.85911966]
[1769357199068,4.951337,2911.8,2909.8,1.57914629]
[1769357199069,3.40180009,2911.8,2909.8,1.57914629]
[1769357199367,0.0582501,2912.3,2910.3,0.85900847]
[1769357199685,4.85147577,2912.2,2910.5,0.85895894]
[1769357199987,7.318236,2912.2,2910.4,1.28849091]
[1769357200214,7.318236,2912.2,2910.4,1.28849512]
[1769357200369,0.0582501,2912.1,2910.4,0.42950804]
[1769357200568,4.956,2911.8,2909.9,0.85911781]
[1769357200768,3.024626,2911.8,2910.0,0.85910544]
[1769357201071,9.603684,2911.8,2909.8,3.4366534]
[1769357201272,2.142106,2911.6,2909.8,0.85914739]
[1769357201469,3.429393,2911.6,2910.0,0.85909978]
[1769357201781,0.34876431,2911.5,2909.3,0.91756333]
[1769357201976,4.31861615,2911.9,2909.5,3.33446545]
[1769357202172,1.26851112,2912.3,2909.9,3.33446545]
[1769357202372,4.560027,2912.2,2909.9,3.27621535]
[1769357202594,0.0582501,2912.1,2909.5,0.0582501]
[1769357202800,0.0582501,2912.1,2909.7,0.0582501]
[1769357202997,3.13371,2912.0,2909.7,0.0582501]
[1769357203201,0.31919601,2911.9,2909.7,0.0582501]
[1769357203386,1.26851112,2912.3,2909.9,0.0582501]
[1769357203387,0.41008013,2912.3,2909.9,0.0582501]
[1769357203590,0.35183003,2912.3,2910.5,3.27621535]
[1769357203776,0.9173179,2912.9,2910.5,3.27621535]
[1769357203777,0.0590501,2912.9,2910.5,3.33446545]
[1769357203986,0.0008,2912.9,2910.7,0.0582501]
[1769357204178,3.39181,2912.8,2910.7,0.0582501]
[1769357204404,3.4500601,2912.8,2910.5,3.27621535]
[1769357204700,0.85906817,2912.9,2910.7,0.0582501]
[1769357204701,0.43091283,2912.7,2910.7,0.0582501]
[1769357205007,0.0008,2912.9,2910.7,3.33446545]
[1769357205206,0.0008,2912.9,2910.9,0.0582501]
[1769357205405,0.0582501,2912.8,2910.6,0.41352038]
[1769357205610,2.295368,2912.7,2910.4,1.57898845]
[1769357205815,7.276393,2912.5,2910.4,1.57898845]
[1769357205978,0.85833962,2912.6,2910.4,1.57898845]
[1769357206480,2.24174,2911.7,2910.6,0.002]
[1769357206807,2.411503,2911.5,2910.6,0.002]
[1769357207120,0.22999901,2911.6,2910.6,0.002]
[1769357207414,10.35958609,2911.6,2910.4,0.002]
[1769357207620,5.166728,2911.4,2910.4,0.002]
[1769357207916,3.40180009,2911.5,2910.4,0.002]
[1769357208322,0.91687506,2911.7,2910.4,0.002]
[1769357208618,2.618755,2911.6,2910.4,0.002]
[1769357208858,4.378728,2911.4,2910.4,0.002]